Workbook

Sheet Sheet1
B1: Slopes of Secant Lines
B3: graphing utility lets you investigate
B4: the slopes of secant lines to the curve
C5: of any desired function
D6: y = f(x)
B7: on any interval from x = a to x = b.
A9: Enter the function in terms of x: f(x) = | F9: x^3-6
A12: Now enter the interval for x:
C13: xMin = | D13: 1
C14: xMax = | D14: 6
L19: The graph of the function y = | O19: =F9 -> x^3-6
A22: Click each item below for suggestions and investigations | L22: Select a point on the curve x0 = | P22: =O24 -> 2.25
B23: Item 1
B24: Item 2 | N24: 25 | O24: =D13+N24*(D14-D13)/100 -> 2.25
B25: Item 3
L26: h | M26: Slope of Secant Line
L27: =Sheet2!E8 -> 3.75 | N27: =Sheet2!H8 -> 54.5625
L28: =Sheet2!E10 -> 1.875 | N28: =Sheet2!H10 -> 31.359375
A29: To access/download all the DIGMath Apps for Calculus | L29: =Sheet2!E12 -> 0.9375 | N29: =Sheet2!H12 -> 22.39453125
A30: Click this link: | C30: DIGMath for Calculus | L30: =Sheet2!E14 -> 0.46875 | N30: =Sheet2!H14 -> 18.57128906
L31: =Sheet2!E16 -> 0.234375 | N31: =Sheet2!H16 -> 16.82446289
A32: Created by: Sheldon P. Gordon | L32: =Sheet2!E18 -> 0.1171875 | N32: =Sheet2!H18 -> 15.99224854
A33: Farmingdale State College | L33: =Sheet2!E20 -> 0.05859375 | N33: =Sheet2!H20 -> 15.58644104
A34: Development of this module was supported by the | L34: =Sheet2!E22 -> 0.029296875 | N34: =Sheet2!H22 -> 15.38611221
A35: NSF's Division of Undergraduate Education
A36: under grants DUE-0310123 and DUE-0442160. | K36: The slope of the tangent line at x0 = | O36: =x0 -> 2.25
K37: = the derivative f '( x0) of the function = | P37: =LOOKUP(O24,Sheet2!A3:A1003,Sheet2!C3:C1003) -> 15.20436906
L38: (as h → 0)

Sheet Sheet2
A1: x | B1: f(x) | C1: slope | F1: xl= | G1: =IF(Sheet1!$O$24<Sheet1!D13+80*Sheet2!G5,Sheet1!D13,Sheet1!O24-80*Sheet2!G5) -> 1.8503996 | H1: =LOOKUP(Sheet1!O24,Sheet2!A3:A1002,Sheet2!B3:B1002)+LOOKUP(Sheet1!O24,Sheet2!A3:A1002,Sheet2!C3:C1002)*(G1-Sheet1!O24) -> -0.7040018368 | I1: "=yl
F2: xr= | G2: =IF(Sheet1!$O$24>Sheet1!D14-80*Sheet2!G5,Sheet1!D14,Sheet1!O24+80*Sheet2!G5) -> 2.6496004 | H2: =LOOKUP(Sheet1!O24,Sheet2!A3:A1003,Sheet2!B3:B1003)+LOOKUP(Sheet1!O24,Sheet2!A3:A1003,Sheet2!C3:C1003)*(G2-Sheet1!O24) -> 11.44734207 | I2: "=yR
A3: =Sheet1!D13 -> 1.00 | B3: =x^3-6 -> -5 | C3: =(B4-B3)/Sheet2!$G$5 -> 3.015009965
A4: =A3+Sheet2!G$5 -> 1.00 | B4: -4.98494001 | C4: =(B5-B4)/Sheet2!$G$5 -> 3.045129695
A5: =A4+Sheet2!G$5 -> 1.01 | B5: -4.969729572 | C5: =(B6-B5)/Sheet2!$G$5 -> 3.075399126 | F5: delta x = | G5: =(Sheet1!D14-Sheet1!D13)/1001 -> 0.004995004995 | H5: h = | I5: =IF(x0<=xMin+2/3*(xMax-xMin),xMax-x0,x0-xMin) -> 3.75 | K5: Point
A6: =A5+Sheet2!G$5 -> 1.01 | B6: -4.954367938 | C6: =(B7-B6)/Sheet2!$G$5 -> 3.105818258 | E6: Secant lines | K6: =x0 -> 2.25
A7: =A6+Sheet2!G$5 -> 1.02 | B7: -4.93885436 | C7: =(B8-B7)/Sheet2!$G$5 -> 3.136387089 | E7: h | F7: x | G7: y | H7: m | K7: =LOOKUP(x0,A3:A1004,B3:B1004) -> 5.371670114
A8: =A7+Sheet2!G$5 -> 1.02 | B8: -4.923188091 | C8: =(B9-B8)/Sheet2!$G$5 -> 3.167105622 | E8: =h -> 3.75 | F8: =x0 -> 2.25 | G8: =LOOKUP(F8,A$3:A$1004,B$3:B$1004) -> 5.371670114 | H8: =C1006 -> 54.5625
A9: =A8+Sheet2!G$5 -> 1.03 | B9: -4.907368383 | C9: =(B10-B9)/Sheet2!$G$5 -> 3.197973854 | F9: =x0+E8 -> 6 | G9: 209.4609884
A10: =A9+Sheet2!G$5 -> 1.03 | B10: -4.891394487 | C10: =(B11-B10)/Sheet2!$G$5 -> 3.228991787 | E10: =h/2 -> 1.875 | F10: =x0 -> 2.25 | G10: 5.371670114 | H10: =C1007 -> 31.359375
A11: =A10+Sheet2!G$5 -> 1.04 | B11: -4.875265657 | C11: =(B12-B11)/Sheet2!$G$5 -> 3.260159421 | F11: =x0+E10 -> 4.125 | G11: 64.03021158
A12: =A11+Sheet2!G$5 -> 1.04 | B12: -4.858981145 | C12: =(B13-B12)/Sheet2!$G$5 -> 3.291476755 | E12: =h/4 -> 0.9375 | F12: =x0 -> 2.25 | G12: 5.371670114 | H12: =C1008 -> 22.39453125
A13: =A12+Sheet2!G$5 -> 1.05 | B13: -4.842540202 | C13: =(B14-B13)/Sheet2!$G$5 -> 3.322943789 | F13: =x0+E12 -> 3.1875 | G13: 26.24297318
A14: =A13+Sheet2!G$5 -> 1.05 | B14: -4.825942081 | C14: =(B15-B14)/Sheet2!$G$5 -> 3.354560524 | E14: =h/8 -> 0.46875 | F14: =x0 -> 2.25 | G14: 5.371670114 | H14: =C1009 -> 18.57128906
A15: =A14+Sheet2!G$5 -> 1.06 | B15: -4.809186035 | C15: =(B16-B15)/Sheet2!$G$5 -> 3.38632696 | F15: =x0+E14 -> 2.71875 | G15: 14.08553448
A16: =A15+Sheet2!G$5 -> 1.06 | B16: -4.792271314 | C16: =(B17-B16)/Sheet2!$G$5 -> 3.418243096 | E16: =h/16 -> 0.234375 | F16: =x0 -> 2.25 | G16: 5.371670114 | H16: =C1010 -> 16.82446289
A17: =A16+Sheet2!G$5 -> 1.07 | B17: -4.775197173 | C17: =(B18-B17)/Sheet2!$G$5 -> 3.450308932 | F17: =x0+E16 -> 2.484375 | G17: 9.317967385
A18: =A17+Sheet2!G$5 -> 1.07 | B18: -4.757962863 | C18: =(B19-B18)/Sheet2!$G$5 -> 3.482524469 | E18: =h/32 -> 0.1171875 | F18: =x0 -> 2.25 | G18: 5.371670114 | H18: =C1011 -> 15.99224854
A19: =A18+Sheet2!G$5 -> 1.08 | B19: -4.740567636 | C19: =(B20-B19)/Sheet2!$G$5 -> 3.514889706 | F19: =x0+E18 -> 2.3671875 | G19: 7.205108941
A20: =A19+Sheet2!G$5 -> 1.08 | B20: -4.723010744 | C20: =(B21-B20)/Sheet2!$G$5 -> 3.547404643 | E20: =h/64 -> 0.05859375 | F20: =x0 -> 2.25 | G20: 5.371670114 | H20: =C1012 -> 15.58644104
A21: =A20+Sheet2!G$5 -> 1.09 | B21: -4.70529144 | C21: =(B22-B21)/Sheet2!$G$5 -> 3.580069281 | F21: =x0+E20 -> 2.30859375 | G21: 6.225754663
A22: =A21+Sheet2!G$5 -> 1.09 | B22: -4.687408976 | C22: =(B23-B22)/Sheet2!$G$5 -> 3.61288362 | E22: =h/128 -> 0.029296875 | F22: =x0 -> 2.25 | G22: 5.371670114 | H22: =C1013 -> 15.38611221
A23: =A22+Sheet2!G$5 -> 1.10 | B23: -4.669362604 | C23: =(B24-B23)/Sheet2!$G$5 -> 3.645847659 | F23: =x0+E22 -> 2.279296875 | G23: 5.832421268
A24: =A23+Sheet2!G$5 -> 1.10 | B24: -4.651151577 | C24: =(B25-B24)/Sheet2!$G$5 -> 3.678961398
A25: =A24+Sheet2!G$5 -> 1.11 | B25: -4.632775147 | C25: =(B26-B25)/Sheet2!$G$5 -> 3.712224838
A26: =A25+Sheet2!G$5 -> 1.11 | B26: -4.614232565 | C26: =(B27-B26)/Sheet2!$G$5 -> 3.745637978
A27: =A26+Sheet2!G$5 -> 1.12 | B27: -4.595523085 | C27: =(B28-B27)/Sheet2!$G$5 -> 3.779200819
A28: =A27+Sheet2!G$5 -> 1.12 | B28: -4.576645958 | C28: =(B29-B28)/Sheet2!$G$5 -> 3.81291336
A29: =A28+Sheet2!G$5 -> 1.13 | B29: -4.557600436 | C29: =(B30-B29)/Sheet2!$G$5 -> 3.846775602
A30: =A29+Sheet2!G$5 -> 1.13 | B30: -4.538385773 | C30: =(B31-B30)/Sheet2!$G$5 -> 3.880787544
A31: =A30+Sheet2!G$5 -> 1.14 | B31: -4.51900122 | C31: =(B32-B31)/Sheet2!$G$5 -> 3.914949187
A32: =A31+Sheet2!G$5 -> 1.14 | B32: -4.499446029 | C32: =(B33-B32)/Sheet2!$G$5 -> 3.94926053
A33: =A32+Sheet2!G$5 -> 1.15 | B33: -4.479719453 | C33: =(B34-B33)/Sheet2!$G$5 -> 3.983721573
A34: =A33+Sheet2!G$5 -> 1.15 | B34: -4.459820744 | C34: =(B35-B34)/Sheet2!$G$5 -> 4.018332317
A35: =A34+Sheet2!G$5 -> 1.16 | B35: -4.439749154 | C35: =(B36-B35)/Sheet2!$G$5 -> 4.053092761
A36: =A35+Sheet2!G$5 -> 1.16 | B36: -4.419503935 | C36: =(B37-B36)/Sheet2!$G$5 -> 4.088002906
A37: =A36+Sheet2!G$5 -> 1.17 | B37: -4.39908434 | C37: =(B38-B37)/Sheet2!$G$5 -> 4.123062751
A38: =A37+Sheet2!G$5 -> 1.17 | B38: -4.378489621 | C38: =(B39-B38)/Sheet2!$G$5 -> 4.158272297
A39: =A38+Sheet2!G$5 -> 1.18 | B39: -4.35771903 | C39: =(B40-B39)/Sheet2!$G$5 -> 4.193631543
A40: =A39+Sheet2!G$5 -> 1.18 | B40: -4.33677182 | C40: =(B41-B40)/Sheet2!$G$5 -> 4.22914049
A41: =A40+Sheet2!G$5 -> 1.19 | B41: -4.315647242 | C41: =(B42-B41)/Sheet2!$G$5 -> 4.264799137
A42: =A41+Sheet2!G$5 -> 1.19 | B42: -4.294344549 | C42: =(B43-B42)/Sheet2!$G$5 -> 4.300607484
A43: =A42+Sheet2!G$5 -> 1.20 | B43: -4.272862993 | C43: =(B44-B43)/Sheet2!$G$5 -> 4.336565532
A44: =A43+Sheet2!G$5 -> 1.20 | B44: -4.251201827 | C44: =(B45-B44)/Sheet2!$G$5 -> 4.372673281
A45: =A44+Sheet2!G$5 -> 1.21 | B45: -4.229360302 | C45: =(B46-B45)/Sheet2!$G$5 -> 4.40893073
A46: =A45+Sheet2!G$5 -> 1.21 | B46: -4.207337671 | C46: =(B47-B46)/Sheet2!$G$5 -> 4.445337879
A47: =A46+Sheet2!G$5 -> 1.22 | B47: -4.185133186 | C47: =(B48-B47)/Sheet2!$G$5 -> 4.481894729
A48: =A47+Sheet2!G$5 -> 1.22 | B48: -4.162746099 | C48: =(B49-B48)/Sheet2!$G$5 -> 4.518601279
A49: =A48+Sheet2!G$5 -> 1.23 | B49: -4.140175663 | C49: =(B50-B49)/Sheet2!$G$5 -> 4.555457529
A50: =A49+Sheet2!G$5 -> 1.23 | B50: -4.11742113 | C50: =(B51-B50)/Sheet2!$G$5 -> 4.592463481
A51: =A50+Sheet2!G$5 -> 1.24 | B51: -4.094481752 | C51: =(B52-B51)/Sheet2!$G$5 -> 4.629619132
A52: =A51+Sheet2!G$5 -> 1.24 | B52: -4.071356782 | C52: =(B53-B52)/Sheet2!$G$5 -> 4.666924484
A53: =A52+Sheet2!G$5 -> 1.25 | B53: -4.04804547 | C53: =(B54-B53)/Sheet2!$G$5 -> 4.704379537
A54: =A53+Sheet2!G$5 -> 1.25 | B54: -4.024547071 | C54: =(B55-B54)/Sheet2!$G$5 -> 4.741984289
A55: =A54+Sheet2!G$5 -> 1.26 | B55: -4.000860836 | C55: =(B56-B55)/Sheet2!$G$5 -> 4.779738743
A56: =A55+Sheet2!G$5 -> 1.26 | B56: -3.976986017 | C56: =(B57-B56)/Sheet2!$G$5 -> 4.817642897
A57: =A56+Sheet2!G$5 -> 1.27 | B57: -3.952921867 | C57: =(B58-B57)/Sheet2!$G$5 -> 4.855696751
A58: =A57+Sheet2!G$5 -> 1.27 | B58: -3.928667637 | C58: =(B59-B58)/Sheet2!$G$5 -> 4.893900305
A59: =A58+Sheet2!G$5 -> 1.28 | B59: -3.904222581 | C59: =(B60-B59)/Sheet2!$G$5 -> 4.932253561
A60: =A59+Sheet2!G$5 -> 1.28 | B60: -3.87958595 | C60: =(B61-B60)/Sheet2!$G$5 -> 4.970756516
A61: =A60+Sheet2!G$5 -> 1.29 | B61: -3.854756996 | C61: =(B62-B61)/Sheet2!$G$5 -> 5.009409172
A62: =A61+Sheet2!G$5 -> 1.29 | B62: -3.829734972 | C62: =(B63-B62)/Sheet2!$G$5 -> 5.048211529
A63: =A62+Sheet2!G$5 -> 1.30 | B63: -3.80451913 | C63: =(B64-B63)/Sheet2!$G$5 -> 5.087163586
A64: =A63+Sheet2!G$5 -> 1.30 | B64: -3.779108723 | C64: =(B65-B64)/Sheet2!$G$5 -> 5.126265343
A65: =A64+Sheet2!G$5 -> 1.31 | B65: -3.753503002 | C65: =(B66-B65)/Sheet2!$G$5 -> 5.165516801
A66: =A65+Sheet2!G$5 -> 1.31 | B66: -3.72770122 | C66: =(B67-B66)/Sheet2!$G$5 -> 5.204917959
A67: =A66+Sheet2!G$5 -> 1.32 | B67: =x^3-6 -> -3.701702628 | C67: =(B68-B67)/Sheet2!$G$5 -> 5.244468818
A68: =A67+Sheet2!G$5 -> 1.32 | B68: -3.67550648 | C68: =(B69-B68)/Sheet2!$G$5 -> 5.284169377
A69: =A68+Sheet2!G$5 -> 1.33 | B69: -3.649112028 | C69: =(B70-B69)/Sheet2!$G$5 -> 5.324019637
A70: =A69+Sheet2!G$5 -> 1.33 | B70: -3.622518523 | C70: =(B71-B70)/Sheet2!$G$5 -> 5.364019597
A71: =A70+Sheet2!G$5 -> 1.34 | B71: -3.595725219 | C71: =(B72-B71)/Sheet2!$G$5 -> 5.404169257
A72: =A71+Sheet2!G$5 -> 1.34 | B72: -3.568731366 | C72: =(B73-B72)/Sheet2!$G$5 -> 5.444468618
A73: =A72+Sheet2!G$5 -> 1.35 | B73: -3.541536218 | C73: =(B74-B73)/Sheet2!$G$5 -> 5.48491768
A74: =A73+Sheet2!G$5 -> 1.35 | B74: -3.514139027 | C74: =(B75-B74)/Sheet2!$G$5 -> 5.525516442
A75: =A74+Sheet2!G$5 -> 1.36 | B75: -3.486539045 | C75: =(B76-B75)/Sheet2!$G$5 -> 5.566264904
A76: =A75+Sheet2!G$5 -> 1.36 | B76: -3.458735524 | C76: =(B77-B76)/Sheet2!$G$5 -> 5.607163067
A77: =A76+Sheet2!G$5 -> 1.37 | B77: -3.430727716 | C77: =(B78-B77)/Sheet2!$G$5 -> 5.64821093
A78: =A77+Sheet2!G$5 -> 1.37 | B78: -3.402514874 | C78: =(B79-B78)/Sheet2!$G$5 -> 5.689408494
A79: =A78+Sheet2!G$5 -> 1.38 | B79: -3.374096251 | C79: =(B80-B79)/Sheet2!$G$5 -> 5.730755758
A80: =A79+Sheet2!G$5 -> 1.38 | B80: -3.345471097 | C80: =(B81-B80)/Sheet2!$G$5 -> 5.772252722
A81: =A80+Sheet2!G$5 -> 1.39 | B81: -3.316638666 | C81: =(B82-B81)/Sheet2!$G$5 -> 5.813899387
A82: =A81+Sheet2!G$5 -> 1.39 | B82: -3.287598209 | C82: =(B83-B82)/Sheet2!$G$5 -> 5.855695753
A83: =A82+Sheet2!G$5 -> 1.40 | B83: -3.25834898 | C83: =(B84-B83)/Sheet2!$G$5 -> 5.897641819
A84: =A83+Sheet2!G$5 -> 1.40 | B84: -3.228890229 | C84: =(B85-B84)/Sheet2!$G$5 -> 5.939737585
A85: =A84+Sheet2!G$5 -> 1.41 | B85: -3.199221211 | C85: =(B86-B85)/Sheet2!$G$5 -> 5.981983052
A86: =A85+Sheet2!G$5 -> 1.41 | B86: -3.169341175 | C86: =(B87-B86)/Sheet2!$G$5 -> 6.024378219
A87: =A86+Sheet2!G$5 -> 1.42 | B87: -3.139249376 | C87: =(B88-B87)/Sheet2!$G$5 -> 6.066923087
A88: =A87+Sheet2!G$5 -> 1.42 | B88: -3.108945065 | C88: =(B89-B88)/Sheet2!$G$5 -> 6.109617655
A89: =A88+Sheet2!G$5 -> 1.43 | B89: -3.078427494 | C89: =(B90-B89)/Sheet2!$G$5 -> 6.152461924
A90: =A89+Sheet2!G$5 -> 1.43 | B90: -3.047695916 | C90: =(B91-B90)/Sheet2!$G$5 -> 6.195455893
A91: =A90+Sheet2!G$5 -> 1.44 | B91: -3.016749583 | C91: =(B92-B91)/Sheet2!$G$5 -> 6.238599562
A92: =A91+Sheet2!G$5 -> 1.44 | B92: -2.985587747 | C92: =(B93-B92)/Sheet2!$G$5 -> 6.281892932
A93: =A92+Sheet2!G$5 -> 1.45 | B93: -2.95420966 | C93: =(B94-B93)/Sheet2!$G$5 -> 6.325336003
A94: =A93+Sheet2!G$5 -> 1.45 | B94: -2.922614576 | C94: =(B95-B94)/Sheet2!$G$5 -> 6.368928774
A95: =A94+Sheet2!G$5 -> 1.46 | B95: -2.890801744 | C95: =(B96-B95)/Sheet2!$G$5 -> 6.412671245
A96: =A95+Sheet2!G$5 -> 1.46 | B96: -2.85877042 | C96: =(B97-B96)/Sheet2!$G$5 -> 6.456563417
A97: =A96+Sheet2!G$5 -> 1.47 | B97: -2.826519853 | C97: =(B98-B97)/Sheet2!$G$5 -> 6.500605289
A98: =A97+Sheet2!G$5 -> 1.47 | B98: -2.794049297 | C98: =(B99-B98)/Sheet2!$G$5 -> 6.544796861
A99: =A98+Sheet2!G$5 -> 1.48 | B99: -2.761358004 | C99: =(B100-B99)/Sheet2!$G$5 -> 6.589138135
A100: =A99+Sheet2!G$5 -> 1.48 | B100: -2.728445226 | C100: =(B101-B100)/Sheet2!$G$5 -> 6.633629108
A101: =A100+Sheet2!G$5 -> 1.49 | B101: -2.695310216 | C101: =(B102-B101)/Sheet2!$G$5 -> 6.678269782
A102: =A101+Sheet2!G$5 -> 1.49 | B102: -2.661952225 | C102: =(B103-B102)/Sheet2!$G$5 -> 6.723060157
A103: =A102+Sheet2!G$5 -> 1.50 | B103: -2.628370506 | C103: =(B104-B103)/Sheet2!$G$5 -> 6.768000232
A104: =A103+Sheet2!G$5 -> 1.50 | B104: -2.594564311 | C104: =(B105-B104)/Sheet2!$G$5 -> 6.813090007
A105: =A104+Sheet2!G$5 -> 1.51 | B105: -2.560532892 | C105: =(B106-B105)/Sheet2!$G$5 -> 6.858329483
A106: =A105+Sheet2!G$5 -> 1.51 | B106: -2.526275502 | C106: =(B107-B106)/Sheet2!$G$5 -> 6.903718659
A107: =A106+Sheet2!G$5 -> 1.52 | B107: -2.491791393 | C107: =(B108-B107)/Sheet2!$G$5 -> 6.949257536
A108: =A107+Sheet2!G$5 -> 1.52 | B108: -2.457079817 | C108: =(B109-B108)/Sheet2!$G$5 -> 6.994946113
A109: =A108+Sheet2!G$5 -> 1.53 | B109: -2.422140026 | C109: =(B110-B109)/Sheet2!$G$5 -> 7.04078439
A110: =A109+Sheet2!G$5 -> 1.53 | B110: -2.386971273 | C110: =(B111-B110)/Sheet2!$G$5 -> 7.086772368
A111: =A110+Sheet2!G$5 -> 1.54 | B111: -2.35157281 | C111: =(B112-B111)/Sheet2!$G$5 -> 7.132910047
A112: =A111+Sheet2!G$5 -> 1.54 | B112: -2.315943888 | C112: =(B113-B112)/Sheet2!$G$5 -> 7.179197426
A113: =A112+Sheet2!G$5 -> 1.55 | B113: -2.280083761 | C113: =(B114-B113)/Sheet2!$G$5 -> 7.225634505
A114: =A113+Sheet2!G$5 -> 1.55 | B114: -2.243991681 | C114: =(B115-B114)/Sheet2!$G$5 -> 7.272221285
A115: =A114+Sheet2!G$5 -> 1.56 | B115: -2.207666899 | C115: =(B116-B115)/Sheet2!$G$5 -> 7.318957766
A116: =A115+Sheet2!G$5 -> 1.56 | B116: -2.171108668 | C116: =(B117-B116)/Sheet2!$G$5 -> 7.365843946
A117: =A116+Sheet2!G$5 -> 1.57 | B117: -2.134316241 | C117: =(B118-B117)/Sheet2!$G$5 -> 7.412879827
A118: =A117+Sheet2!G$5 -> 1.57 | B118: -2.097288869 | C118: =(B119-B118)/Sheet2!$G$5 -> 7.460065409
A119: =A118+Sheet2!G$5 -> 1.58 | B119: -2.060025805 | C119: =(B120-B119)/Sheet2!$G$5 -> 7.507400691
A120: =A119+Sheet2!G$5 -> 1.58 | B120: -2.022526301 | C120: =(B121-B120)/Sheet2!$G$5 -> 7.554885674
A121: =A120+Sheet2!G$5 -> 1.59 | B121: -1.98478961 | C121: =(B122-B121)/Sheet2!$G$5 -> 7.602520357
A122: =A121+Sheet2!G$5 -> 1.59 | B122: -1.946814983 | C122: =(B123-B122)/Sheet2!$G$5 -> 7.65030474
A123: =A122+Sheet2!G$5 -> 1.60 | B123: -1.908601672 | C123: =(B124-B123)/Sheet2!$G$5 -> 7.698238824
A124: =A123+Sheet2!G$5 -> 1.60 | B124: -1.870148931 | C124: =(B125-B124)/Sheet2!$G$5 -> 7.746322608
A125: =A124+Sheet2!G$5 -> 1.61 | B125: -1.831456011 | C125: =(B126-B125)/Sheet2!$G$5 -> 7.794556093
A126: =A125+Sheet2!G$5 -> 1.61 | B126: -1.792522164 | C126: =(B127-B126)/Sheet2!$G$5 -> 7.842939279
A127: =A126+Sheet2!G$5 -> 1.62 | B127: -1.753346643 | C127: =(B128-B127)/Sheet2!$G$5 -> 7.891472164
A128: =A127+Sheet2!G$5 -> 1.62 | B128: -1.7139287 | C128: =(B129-B128)/Sheet2!$G$5 -> 7.94015475
A129: =A128+Sheet2!G$5 -> 1.63 | B129: -1.674267588 | C129: =(B130-B129)/Sheet2!$G$5 -> 7.988987037
A130: =A129+Sheet2!G$5 -> 1.63 | B130: -1.634362558 | C130: =(B131-B130)/Sheet2!$G$5 -> 8.037969024
A131: =A130+Sheet2!G$5 -> 1.64 | B131: =x^3-6 -> -1.594212862 | C131: =(B132-B131)/Sheet2!$G$5 -> 8.087100711
A132: =A131+Sheet2!G$5 -> 1.64 | B132: -1.553817754 | C132: =(B133-B132)/Sheet2!$G$5 -> 8.136382099
A133: =A132+Sheet2!G$5 -> 1.65 | B133: -1.513176485 | C133: =(B134-B133)/Sheet2!$G$5 -> 8.185813188
A134: =A133+Sheet2!G$5 -> 1.65 | B134: -1.472288307 | C134: =(B135-B134)/Sheet2!$G$5 -> 8.235393977
A135: =A134+Sheet2!G$5 -> 1.66 | B135: -1.431152473 | C135: =(B136-B135)/Sheet2!$G$5 -> 8.285124466
A136: =A135+Sheet2!G$5 -> 1.66 | B136: -1.389768235 | C136: =(B137-B136)/Sheet2!$G$5 -> 8.335004656
A137: =A136+Sheet2!G$5 -> 1.67 | B137: -1.348134845 | C137: =(B138-B137)/Sheet2!$G$5 -> 8.385034546
A138: =A137+Sheet2!G$5 -> 1.67 | B138: -1.306251555 | C138: =(B139-B138)/Sheet2!$G$5 -> 8.435214137
A139: =A138+Sheet2!G$5 -> 1.68 | B139: -1.264117619 | C139: =(B140-B139)/Sheet2!$G$5 -> 8.485543428
A140: =A139+Sheet2!G$5 -> 1.68 | B140: -1.221732287 | C140: =(B141-B140)/Sheet2!$G$5 -> 8.536022419
A141: =A140+Sheet2!G$5 -> 1.69 | B141: -1.179094812 | C141: =(B142-B141)/Sheet2!$G$5 -> 8.586651111
A142: =A141+Sheet2!G$5 -> 1.69 | B142: -1.136204447 | C142: =(B143-B142)/Sheet2!$G$5 -> 8.637429504
A143: =A142+Sheet2!G$5 -> 1.70 | B143: -1.093060443 | C143: =(B144-B143)/Sheet2!$G$5 -> 8.688357596
A144: =A143+Sheet2!G$5 -> 1.70 | B144: -1.049662054 | C144: =(B145-B144)/Sheet2!$G$5 -> 8.73943539
A145: =A144+Sheet2!G$5 -> 1.71 | B145: -1.00600853 | C145: =(B146-B145)/Sheet2!$G$5 -> 8.790662884
A146: =A145+Sheet2!G$5 -> 1.71 | B146: -0.9620991254 | C146: =(B147-B146)/Sheet2!$G$5 -> 8.842040078
A147: =A146+Sheet2!G$5 -> 1.72 | B147: -0.917933091 | C147: =(B148-B147)/Sheet2!$G$5 -> 8.893566972
A148: =A147+Sheet2!G$5 -> 1.72 | B148: -0.8735096796 | C148: =(B149-B148)/Sheet2!$G$5 -> 8.945243568
A149: =A148+Sheet2!G$5 -> 1.73 | B149: -0.8288281433 | C149: =(B150-B149)/Sheet2!$G$5 -> 8.997069863
A150: =A149+Sheet2!G$5 -> 1.73 | B150: -0.7838877343 | C150: =(B151-B150)/Sheet2!$G$5 -> 9.049045859
A151: =A150+Sheet2!G$5 -> 1.74 | B151: -0.7386877051 | C151: =(B152-B151)/Sheet2!$G$5 -> 9.101171556
A152: =A151+Sheet2!G$5 -> 1.74 | B152: -0.6932273077 | C152: =(B153-B152)/Sheet2!$G$5 -> 9.153446953
A153: =A152+Sheet2!G$5 -> 1.75 | B153: -0.6475057945 | C153: =(B154-B153)/Sheet2!$G$5 -> 9.20587205
A154: =A153+Sheet2!G$5 -> 1.75 | B154: -0.6015224176 | C154: =(B155-B154)/Sheet2!$G$5 -> 9.258446848
A155: =A154+Sheet2!G$5 -> 1.76 | B155: -0.5552764293 | C155: =(B156-B155)/Sheet2!$G$5 -> 9.311171346
A156: =A155+Sheet2!G$5 -> 1.76 | B156: -0.5087670819 | C156: =(B157-B156)/Sheet2!$G$5 -> 9.364045545
A157: =A156+Sheet2!G$5 -> 1.77 | B157: -0.4619936277 | C157: =(B158-B157)/Sheet2!$G$5 -> 9.417069444
A158: =A157+Sheet2!G$5 -> 1.77 | B158: -0.4149553188 | C158: =(B159-B158)/Sheet2!$G$5 -> 9.470243044
A159: =A158+Sheet2!G$5 -> 1.78 | B159: -0.3676514075 | C159: =(B160-B159)/Sheet2!$G$5 -> 9.523566344
A160: =A159+Sheet2!G$5 -> 1.78 | B160: -0.320081146 | C160: =(B161-B160)/Sheet2!$G$5 -> 9.577039344
A161: =A160+Sheet2!G$5 -> 1.79 | B161: -0.2722437866 | C161: =(B162-B161)/Sheet2!$G$5 -> 9.630662045
A162: =A161+Sheet2!G$5 -> 1.79 | B162: -0.2241385816 | C162: =(B163-B162)/Sheet2!$G$5 -> 9.684434447
A163: =A162+Sheet2!G$5 -> 1.80 | B163: -0.1757647832 | C163: =(B164-B163)/Sheet2!$G$5 -> 9.738356549
A164: =A163+Sheet2!G$5 -> 1.80 | B164: -0.1271216436 | C164: =(B165-B164)/Sheet2!$G$5 -> 9.792428351
A165: =A164+Sheet2!G$5 -> 1.81 | B165: -0.07820841505 | C165: =(B166-B165)/Sheet2!$G$5 -> 9.846649854
A166: =A165+Sheet2!G$5 -> 1.81 | B166: -0.02902434985 | C166: =(B167-B166)/Sheet2!$G$5 -> 9.901021057
A167: =A166+Sheet2!G$5 -> 1.82 | B167: 0.02043129979 | C167: =(B168-B167)/Sheet2!$G$5 -> 9.955541961
A168: =A167+Sheet2!G$5 -> 1.82 | B168: 0.07015928161 | C168: =(B169-B168)/Sheet2!$G$5 -> 10.01021256
A169: =A168+Sheet2!G$5 -> 1.83 | B169: 0.1201603434 | C169: =(B170-B169)/Sheet2!$G$5 -> 10.06503287
A170: =A169+Sheet2!G$5 -> 1.83 | B170: 0.1704352328 | C170: =(B171-B170)/Sheet2!$G$5 -> 10.12000287
A171: =A170+Sheet2!G$5 -> 1.84 | B171: 0.2209846977 | C171: =(B172-B171)/Sheet2!$G$5 -> 10.17512258
A172: =A171+Sheet2!G$5 -> 1.84 | B172: 0.2718094858 | C172: =(B173-B172)/Sheet2!$G$5 -> 10.23039199
A173: =A172+Sheet2!G$5 -> 1.85 | B173: 0.3229103449 | C173: =(B174-B173)/Sheet2!$G$5 -> 10.28581109
A174: =A173+Sheet2!G$5 -> 1.85 | B174: 0.3742880227 | C174: =(B175-B174)/Sheet2!$G$5 -> 10.3413799
A175: =A174+Sheet2!G$5 -> 1.86 | B175: 0.4259432669 | C175: =(B176-B175)/Sheet2!$G$5 -> 10.39709841
A176: =A175+Sheet2!G$5 -> 1.86 | B176: 0.4778768254 | C176: =(B177-B176)/Sheet2!$G$5 -> 10.45296661
A177: =A176+Sheet2!G$5 -> 1.87 | B177: 0.5300894459 | C177: =(B178-B177)/Sheet2!$G$5 -> 10.50898452
A178: =A177+Sheet2!G$5 -> 1.87 | B178: 0.582581876 | C178: =(B179-B178)/Sheet2!$G$5 -> 10.56515213
A179: =A178+Sheet2!G$5 -> 1.88 | B179: 0.6353548637 | C179: =(B180-B179)/Sheet2!$G$5 -> 10.62146944
A180: =A179+Sheet2!G$5 -> 1.88 | B180: 0.6884091566 | C180: =(B181-B180)/Sheet2!$G$5 -> 10.67793645
A181: =A180+Sheet2!G$5 -> 1.89 | B181: 0.7417455025 | C181: =(B182-B181)/Sheet2!$G$5 -> 10.73455316
A182: =A181+Sheet2!G$5 -> 1.89 | B182: 0.7953646492 | C182: =(B183-B182)/Sheet2!$G$5 -> 10.79131957
A183: =A182+Sheet2!G$5 -> 1.90 | B183: 0.8492673443 | C183: =(B184-B183)/Sheet2!$G$5 -> 10.84823568
A184: =A183+Sheet2!G$5 -> 1.90 | B184: 0.9034543357 | C184: =(B185-B184)/Sheet2!$G$5 -> 10.90530149
A185: =A184+Sheet2!G$5 -> 1.91 | B185: 0.9579263711 | C185: =(B186-B185)/Sheet2!$G$5 -> 10.962517
A186: =A185+Sheet2!G$5 -> 1.91 | B186: 1.012684198 | C186: =(B187-B186)/Sheet2!$G$5 -> 11.01988222
A187: =A186+Sheet2!G$5 -> 1.92 | B187: 1.067728565 | C187: =(B188-B187)/Sheet2!$G$5 -> 11.07739713
A188: =A187+Sheet2!G$5 -> 1.92 | B188: 1.123060219 | C188: =(B189-B188)/Sheet2!$G$5 -> 11.13506174
A189: =A188+Sheet2!G$5 -> 1.93 | B189: 1.178679908 | C189: =(B190-B189)/Sheet2!$G$5 -> 11.19287606
A190: =A189+Sheet2!G$5 -> 1.93 | B190: 1.23458838 | C190: =(B191-B190)/Sheet2!$G$5 -> 11.25084007
A191: =A190+Sheet2!G$5 -> 1.94 | B191: 1.290786382 | C191: =(B192-B191)/Sheet2!$G$5 -> 11.30895378
A192: =A191+Sheet2!G$5 -> 1.94 | B192: 1.347274663 | C192: =(B193-B192)/Sheet2!$G$5 -> 11.3672172
A193: =A192+Sheet2!G$5 -> 1.95 | B193: 1.40405397 | C193: =(B194-B193)/Sheet2!$G$5 -> 11.42563031
A194: =A193+Sheet2!G$5 -> 1.95 | B194: 1.46112505 | C194: =(B195-B194)/Sheet2!$G$5 -> 11.48419313
A195: =A194+Sheet2!G$5 -> 1.96 | B195: =x^3-6 -> 1.518488652 | C195: =(B196-B195)/Sheet2!$G$5 -> 11.54290565
A196: =A195+Sheet2!G$5 -> 1.96 | B196: 1.576145523 | C196: =(B197-B196)/Sheet2!$G$5 -> 11.60176786
A197: =A196+Sheet2!G$5 -> 1.97 | B197: 1.634096412 | C197: =(B198-B197)/Sheet2!$G$5 -> 11.66077978
A198: =A197+Sheet2!G$5 -> 1.97 | B198: 1.692342065 | C198: =(B199-B198)/Sheet2!$G$5 -> 11.7199414
A199: =A198+Sheet2!G$5 -> 1.98 | B199: 1.750883231 | C199: =(B200-B199)/Sheet2!$G$5 -> 11.77925272
A200: =A199+Sheet2!G$5 -> 1.98 | B200: 1.809720657 | C200: =(B201-B200)/Sheet2!$G$5 -> 11.83871373
... 813 more rows

Sheet Defining Function
A1: Defining a Function in Excel
A3: Computers have very specific rules you must follow when defining a function. If you don't, the program will either not work at all or will work incorrectly.
A5: 1. The Variable used should be the one named in the instruction, usually x, though sometimes y, t, Q (for an angle theta),
A6: or even x and y (for a function of two variables).
A8: 2. Order of Operations: There five arithmetic operations, addition (+), subtraction (-), multiplication (*), division (/), and exponentiation or power (^). When computers see any of these operation symbols, they perform the indicated steps in a very particular order. First, the power is done. Second, products and quotients of adjacent terms is done. Third, and last, sums and differences of adjacent terms are done. So, in 10*x^3 + 5*x – 7, say with x = 2, the first pass only calculates 2^3 and ignores the multiplications and the sums and differences to calculate 2^3 = 8. The second pass looks at 10*8 + 5*2 – 7 and only does the multiplications, so it produces 80 + 10 - 7. The third pass looks at the +’s and –‘s to produce 80 + 10 – 7 = 83.
A10: 3. Parentheses If you need an operation involving more than two adjacent terms, as in Ö4^3 + 6^2, the computer would take the square root of 4 to produce 2^3 + 6^2; it would then cube the 2 and square the 6 to produce 8 + 36; and finally it would add the 8 and the 36 to get 44. If you actually wanted the square root of the entire expression, you would need to use parentheses, as in Ö(4^3 + 6^2) to tell the computer to do all the operations inside the parentheses before taking the square root. Therefore, it would calculate (4^3 + 6^2) = 64 + 36 = 100 and then take the square root of Ö100 = 10.
A12: 4. Built-In Functions Computer programs have built-in functions for most common algebraic functions. In Excel, the square root function is denoted by SQRT(…), so SQRT(100) = 10. Alternatively, you could enter it as 100^.5 or 100^(1/2); notice that parentheses are needed to have the ½ done first. The common trig functions are SIN (…), COS (…), and TAN (…), where the arguments are automatically interpreted as being in radians, not degrees. The logarithm to the base 10 is represented by LOG (…) and the logarithm with the base e, known as the natural logarithm, is LN (…). The corresponding exponential function with base e is EXP (x). If x is the variable, then each of these would be SQRT (x), SIN (x), COS (x), TAN (x), LOG (x) (for log with base 10 ), LN (x) (for log with base e ), and EXP (x).

Sheet Sheet3
